bitfinex/quotes_BTCUSD_20240811
["timestamp","ask_amount","ask_price","bid_price","bid_amount"]
[1723411079184,1.29228,58666.0,58665.0,0.0019108]
[1723411079390,1.29028,58666.0,58665.0,0.0009108]
[1723411079789,1.29028,58666.0,58665.0,0.0059108]
[1723411079998,1.29028,58666.0,58665.0,0.0009108]
[1723411080187,1.29128,58666.0,58665.0,0.0009108]
[1723411080386,1.29128,58666.0,58665.0,0.0029108]
[1723411080592,1.81600692,58666.0,58665.0,0.0029108]
[1723411080841,1.81600692,58666.0,58652.0,0.009097]
[1723411080842,0.935655,58661.0,58652.0,0.009097]
[1723411081052,1.375997,58661.0,58652.0,0.009097]
[1723411081456,0.694113,58661.0,58652.0,0.009097]
[1723411082416,0.694113,58661.0,58660.0,0.013086]
[1723411082835,1.035055,58661.0,58660.0,0.013086]
[1723411083044,0.694113,58661.0,58660.0,0.009086]
[1723411083286,0.694113,58661.0,58660.0,0.011086]
[1723411083483,1.035055,58661.0,58660.0,0.011086]
[1723411083683,1.035055,58661.0,58660.0,0.019086]
[1723411083884,1.035055,58661.0,58660.0,0.011086]
[1723411084086,0.1827,58661.0,58660.0,0.011086]
[1723411084289,0.1827,58661.0,58660.0,0.17490092]
[1723411084493,0.353171,58661.0,58660.0,0.17490092]
[1723411084698,0.1827,58661.0,58660.0,0.27490092]
[1723411085103,0.353171,58661.0,58660.0,0.27490092]
[1723411085315,0.1827,58661.0,58660.0,0.28190092]
[1723411085683,0.1827,58661.0,58660.0,0.27590092]
[1723411085877,0.1827,58661.0,58660.0,0.28690092]
[1723411086109,0.1827,58661.0,58660.0,0.28390092]
[1723411086317,0.0994,58665.0,58660.0,0.61784492]
[1723411086524,0.08184646,58664.0,58662.0,0.170467]
[1723411086701,0.08184646,58664.0,58663.0,0.16381492]
[1723411086933,0.08184646,58664.0,58663.0,0.26381492]
[1723411087141,0.09291279,58736.0,58663.0,0.26381492]
[1723411087142,0.0994,58679.0,58667.0,0.1072]
[1723411087349,0.08184646,58673.0,58672.0,0.170436]
[1723411087551,0.08184646,58673.0,58672.0,0.43425092]
[1723411088246,0.08184646,58673.0,58672.0,0.26381492]
[1723411089065,0.08184646,58673.0,58672.0,0.43425392]
[1723411089263,0.25228246,58673.0,58672.0,0.1]
[1723411089500,0.25228246,58673.0,58672.0,0.011]
[1723411089501,1.03342846,58673.0,58672.0,0.011]
[1723411089761,1.03342846,58673.0,58672.0,0.025]
[1723411089762,0.69255646,58673.0,58672.0,0.025]
[1723411090112,0.69255646,58673.0,58672.0,0.011]
[1723411090323,0.35168446,58673.0,58672.0,0.025]
[1723411090731,0.69255646,58673.0,58672.0,0.011]
[1723411090935,0.69255646,58673.0,58672.0,0.014]
[1723411091509,0.69255646,58673.0,58672.0,0.021]
[1723411091907,0.69255646,58673.0,58672.0,0.014]
[1723411092314,0.69255646,58673.0,58672.0,0.025]
[1723411092526,0.424138,58679.0,58672.0,0.18881492]
[1723411092527,0.1058,58678.0,58672.0,0.18881492]
[1723411092726,0.170396,58687.0,58673.0,0.40537267]
[1723411092925,0.8995,58688.0,58673.0,0.40537267]
[1723411092926,0.08184646,58682.0,58681.0,0.170412]
[1723411093124,0.08184646,58682.0,58681.0,0.40537267]
[1723411093386,0.08184646,58682.0,58681.0,0.57578467]
[1723411093595,0.08184646,58682.0,58681.0,0.40537267]
[1723411094024,0.081,58690.0,58681.0,0.40537267]
[1723411094229,0.08184646,58688.0,58684.0,0.340803]
[1723411094433,0.08184646,58688.0,58686.0,0.170397]
[1723411094648,0.08184646,58688.0,58687.0,0.40537267]
[1723411094857,0.08184646,58688.0,58687.0,0.24155775]
[1723411095062,0.08184646,58688.0,58687.0,0.40537267]
[1723411095267,0.08184646,58688.0,58687.0,0.575722]
[1723411095469,0.08184646,58688.0,58687.0,0.63543606]
[1723411095677,0.08184646,58688.0,58687.0,0.575722]
[1723411095805,0.08184646,58688.0,58687.0,0.581722]
[1723411096414,0.08184646,58688.0,58687.0,0.922512]
[1723411096616,0.08184646,58688.0,58687.0,0.936512]
[1723411096822,0.08184646,58688.0,58687.0,0.79399013]
[1723411097037,0.08184646,58688.0,58687.0,0.575722]
[1723411097262,0.08184646,58697.0,58690.0,0.340768]
[1723411097462,0.08184646,58697.0,58692.0,0.05970806]
[1723411097699,0.08184646,58697.0,58693.0,0.305327]
[1723411097938,0.08184646,58697.0,58694.0,0.14151208]
[1723411097939,0.42258046,58697.0,58694.0,0.14151208]
[1723411098209,0.170369,58696.0,58695.0,0.14151208]
[1723411098449,0.851845,58696.0,58695.0,0.14151208]
[1723411098660,0.851845,58696.0,58691.0,0.1]
[1723411098661,0.340745,58695.0,58691.0,0.1]
[1723411098873,0.340738,58696.0,58692.0,0.1415011]
[1723411099068,0.511109,58696.0,58693.0,0.1415011]
[1723411099282,0.08184646,58697.0,58695.0,0.013]
[1723411099495,0.08184646,58697.0,58696.0,0.14150096]
[1723411099692,0.25221246,58697.0,58696.0,0.14150096]
[1723411099898,0.59294446,58697.0,58696.0,0.14150096]
[1723411100687,0.08184646,58697.0,58696.0,0.30531588]
[1723411101028,0.01,58713.0,58696.0,0.30531588]
[1723411101029,0.1058,58712.0,58704.0,0.340688]
[1723411101232,0.1353,58714.0,58702.0,0.340702]
[1723411101233,0.17032,58713.0,58705.0,0.24150096]
[1723411101454,0.17032,58713.0,58706.0,0.14150096]
[1723411101648,0.1353,58714.0,58707.0,0.24150096]
[1723411101847,0.340628,58715.0,58708.0,0.14150096]
[1723411102072,0.170314,58715.0,58709.0,0.14150096]
[1723411102542,0.1713,58716.0,58710.0,0.14150096]
[1723411102543,0.170317,58714.0,58710.0,0.14150096]
[1723411102748,0.1713,58716.0,58710.0,0.14150096]
[1723411102948,0.1713,58716.0,58710.0,0.30531588]
[1723411103171,0.170315,58715.0,58710.0,0.30531588]
[1723411103386,0.1713,58716.0,58710.0,0.30531588]
[1723411103695,0.170315,58715.0,58710.0,0.30531588]
[1723411103877,0.170319,58714.0,58710.0,0.30531588]
[1723411104109,0.1713,58716.0,58710.0,0.30531588]
[1723411104517,0.1713,58716.0,58710.0,0.31831588]
[1723411104518,0.170314,58715.0,58710.0,0.31831588]
[1723411105033,0.170314,58715.0,58710.0,0.30527136]
[1723411105252,0.170314,58715.0,58710.0,0.32827136]
[1723411105686,0.170314,58715.0,58710.0,0.31427136]
[1723411105911,0.340611,58718.0,58710.0,0.32827136]
[1723411106162,0.170312,58716.0,58710.0,0.31427102]
[1723411106396,0.00883389,58711.0,58710.0,1.79537002]
[1723411106629,0.00883389,58711.0,58710.0,1.81137002]
[1723411106842,0.00883389,58711.0,58710.0,1.83437002]
[1723411107322,0.00883389,58711.0,58710.0,1.82137002]
[1723411107750,0.00883389,58711.0,58710.0,1.83537002]
[1723411108163,0.00883389,58711.0,58710.0,1.82137002]
[1723411108367,0.00883389,58711.0,58710.0,1.80737002]
[1723411108573,0.00883389,58711.0,58710.0,1.79737002]
[1723411108757,0.00883389,58711.0,58710.0,1.81137002]
[1723411108976,0.00883389,58711.0,58710.0,1.85696581]
[1723411109182,0.00883389,58711.0,58710.0,1.85696395]
[1723411109385,0.00883389,58711.0,58710.0,1.81137002]
[1723411109552,0.00883389,58711.0,58710.0,1.87096186]
[1723411109752,0.00883389,58711.0,58710.0,1.4456849]
[1723411110153,0.00883389,58711.0,58710.0,1.30425692]
[1723411110330,0.00883389,58711.0,58710.0,0.3332527]
[1723411110512,0.00883389,58711.0,58710.0,0.5035807]
[1723411110712,0.00883389,58711.0,58710.0,0.3192527]
[1723411111115,0.00883389,58711.0,58710.0,0.3332527]
[1723411111425,0.00883389,58711.0,58710.0,0.3192527]
[1723411111575,0.00883389,58711.0,58710.0,0.4895807]
[1723411111936,0.00883389,58711.0,58710.0,1.2848947]
[1723411112065,0.00883389,58711.0,58710.0,1.4575947]
[1723411112665,0.00883389,58711.0,58710.0,1.4295947]
[1723411112885,0.00883389,58711.0,58710.0,1.4565947]
[1723411113098,0.00883389,58711.0,58710.0,1.4425947]
[1723411113545,0.00883389,58711.0,58710.0,1.42959086]
[1723411113752,0.00883389,58711.0,58710.0,1.44359086]
[1723411113952,0.00883389,58711.0,58710.0,1.30215692]
[1723411114155,0.00883389,58711.0,58710.0,1.44358899]
[1723411114678,0.00883389,58711.0,58710.0,1.45758899]
[1723411114887,0.00883389,58711.0,58710.0,1.44358899]
[1723411115290,0.00883389,58711.0,58710.0,1.51718806]
[1723411115653,0.00883389,58711.0,58710.0,0.80279992]
[1723411115978,0.47075889,58711.0,58710.0,0.15543892]
[1723411116180,0.30043389,58711.0,58710.0,0.014]
[1723411116476,0.30043389,58711.0,58710.0,0.15545442]
[1723411116680,0.30043389,58711.0,58710.0,0.16945442]
[1723411117094,0.30043389,58711.0,58710.0,0.15545442]
[1723411117523,0.38228035,58711.0,58710.0,0.14545442]
[1723411117952,0.38228035,58711.0,58710.0,0.15645442]
[1723411118157,0.38228035,58711.0,58710.0,0.14545442]
[1723411118564,0.38228035,58711.0,58710.0,0.15645442]
[1723411118767,0.38228035,58711.0,58710.0,0.14145442]
[1723411118977,0.38228035,58711.0,58710.0,0.15245442]
[1723411119143,0.38228035,58711.0,58710.0,0.15745442]
[1723411119564,0.38228035,58711.0,58710.0,0.15245442]
[1723411120083,0.38228035,58711.0,58710.0,0.15645442]
[1723411120534,0.38228035,58711.0,58710.0,0.15245442]
[1723411120710,0.38228035,58711.0,58710.0,0.15845442]
[1723411120866,0.38228035,58711.0,58710.0,0.14745442]
[1723411121080,0.38228035,58711.0,58710.0,0.16045737]
[1723411121277,0.38228035,58711.0,58710.0,0.14745737]
[1723411122281,0.38228035,58711.0,58710.0,0.16245623]
[1723411122432,0.38228035,58711.0,58710.0,0.14845623]
[1723411122639,0.38228035,58711.0,58710.0,0.14145623]
[1723411122817,0.38228035,58711.0,58710.0,0.15545675]
[1723411123019,0.38228035,58711.0,58710.0,0.16445675]
[1723411124360,0.38228035,58711.0,58710.0,0.2241123]
[1723411124557,0.38228035,58711.0,58710.0,0.2101123]
[1723411125125,0.00883389,58711.0,58710.0,1.37245725]
[1723411125333,0.00883389,58711.0,58710.0,1.62499587]
[1723411125714,0.00883389,58711.0,58710.0,1.64799587]
[1723411125949,0.00883389,58711.0,58710.0,1.97965287]
[1723411126153,0.00883389,58711.0,58710.0,2.00890475]
[1723411126327,0.00883389,58711.0,58710.0,2.02190475]
[1723411126588,0.00883389,58711.0,58710.0,1.63799587]
[1723411126766,0.00883389,58711.0,58710.0,1.62499587]
[1723411127302,0.00883389,58711.0,58710.0,1.96565287]
[1723411127528,0.00883389,58711.0,58710.0,2.02288894]
[1723411127739,0.00883389,58711.0,58710.0,1.66823194]
[1723411128172,0.00883389,58711.0,58710.0,1.69623194]
[1723411128420,0.00883389,58711.0,58710.0,1.68223194]
[1723411128767,0.00883389,58711.0,58710.0,1.69623194]
[1723411128979,0.00883389,58711.0,58710.0,1.68223194]
[1723411129169,0.00883389,58711.0,58710.0,1.69623194]
[1723411129453,0.00883389,58711.0,58710.0,1.65299587]
[1723411129662,0.00883389,58711.0,58710.0,1.48309587]
[1723411129878,0.00883389,58711.0,58710.0,1.49709587]
[1723411130465,0.00883389,58711.0,58710.0,1.66979587]
[1723411130683,0.00883389,58711.0,58710.0,1.73596065]
[1723411130812,0.00883389,58711.0,58710.0,2.07661765]
[1723411131027,0.00883389,58711.0,58710.0,1.73596065]
[1723411131226,0.00883389,58711.0,58710.0,1.87810699]
[1723411131431,0.00883389,58711.0,58710.0,1.73596065]
[1723411131636,0.00883389,58711.0,58710.0,1.67981392]
[1723411131842,0.00883389,58711.0,58710.0,1.73584789]
[1723411132046,0.00883389,58711.0,58710.0,1.87637376]
[1723411132247,0.00883389,58711.0,58710.0,1.73584789]
[1723411132945,0.00883389,58711.0,58710.0,1.73590116]
[1723411134316,0.00883389,58711.0,58710.0,1.56320116]
[1723411136400,0.00883389,58711.0,58710.0,1.20974604]
[1723411136603,0.00883389,58711.0,58710.0,1.56333549]
[1723411139635,0.00883389,58711.0,58710.0,2.40814949]
[1723411139958,0.00883389,58711.0,58710.0,2.32925717]
[1723411140157,0.00883389,58711.0,58710.0,2.22777962]
[1723411140544,0.00883389,58711.0,58710.0,1.94574799]
[1723411140788,0.2932,58727.0,58710.0,1.94574799]
[1723411140789,0.01146108,58740.0,58739.0,0.01]
[1723411141027,0.00825,58744.0,58743.0,0.863165]
[1723411141246,0.00827,58745.0,58744.0,0.52269]
[1723411141477,0.0107159,58751.0,58746.0,0.180224]
[1723411141684,0.0107159,58751.0,58750.0,1.201487]
[1723411141869,0.0107159,58751.0,58750.0,2.26408211]
[1723411142109,0.0107159,58751.0,58750.0,2.8755166]
[1723411142256,0.0107159,58751.0,58750.0,3.03634257]
[1723411142464,0.0107159,58751.0,58750.0,2.6592871]
[1723411142674,0.0107159,58751.0,58750.0,2.3429721]
[1723411142842,0.0107159,58751.0,58750.0,2.23294305]
[1723411143044,0.0107159,58751.0,58750.0,2.3108621]
[1723411143290,0.0107159,58751.0,58750.0,2.31092921]
[1723411143538,0.0107159,58751.0,58750.0,1.83847967]
[1723411143736,0.0107159,58751.0,58750.0,2.1897764]
[1723411144085,0.0107159,58751.0,58750.0,2.18977527]
[1723411144269,0.0107159,58751.0,58750.0,1.99179791]
[1723411144698,0.0107159,58751.0,58750.0,1.97779791]
[1723411144900,0.0107159,58751.0,58750.0,1.99179791]
[1723411145141,0.0107159,58751.0,58750.0,2.00579791]
[1723411145357,0.0107159,58751.0,58750.0,1.99179791]
[1723411146202,0.0107159,58751.0,58750.0,2.00579791]
[1723411146400,0.0115439,58751.0,58750.0,1.99179791]
[1723411146605,0.0115439,58751.0,58750.0,1.85629791]
[1723411146844,0.0115439,58751.0,58750.0,1.36637291]
[1723411147052,0.0115439,58751.0,58750.0,1.22937291]
[1723411147507,0.0115439,58751.0,58750.0,0.90294791]
[1723411147941,0.1752439,58751.0,58750.0,0.37831091]
[1723411148161,0.1752439,58751.0,58750.0,0.33313316]
[1723411148364,0.0115439,58751.0,58750.0,0.50334516]
[1723411148569,0.0115439,58751.0,58750.0,1.18419516]
[1723411148776,0.0115439,58751.0,58750.0,1.15619516]
[1723411148974,0.0115439,58751.0,58750.0,1.52462016]
[1723411149179,0.0115439,58751.0,58750.0,1.51062016]
[1723411149380,0.0115439,58751.0,58750.0,1.61062016]
[1723411149611,0.0115439,58751.0,58750.0,1.64762016]
[1723411149788,0.0115439,58751.0,58750.0,1.63362016]
[1723411149985,0.0115439,58751.0,58750.0,1.66942218]
[1723411150396,0.0115439,58751.0,58750.0,1.74688327]
[1723411150551,0.0115439,58751.0,58750.0,1.61956503]
[1723411150755,0.0115439,58751.0,58750.0,1.66942968]
[1723411150971,0.0115439,58751.0,58750.0,2.00585468]
[1723411151181,0.0005,58755.0,58754.0,1.223407]
[1723411151384,0.0005,58755.0,58754.0,1.68734968]
[1723411151579,0.0005,58755.0,58754.0,2.11921277]
[1723411151984,0.0005,58755.0,58754.0,2.26551277]
[1723411152186,0.0005,58755.0,58754.0,2.76521477]
[1723411152410,0.0005,58755.0,58754.0,2.40481277]
[1723411152616,0.0005,58755.0,58754.0,2.72826427]
[1723411152808,0.0005,58755.0,58754.0,2.36586227]
[1723411153055,0.0005,58755.0,58754.0,2.35375227]
[1723411153351,0.0005,58755.0,58754.0,2.31239939]
[1723411153554,0.0005,58755.0,58754.0,2.29839939]
[1723411154108,0.0005,58755.0,58754.0,2.31239939]
[1723411154310,0.0005,58755.0,58754.0,2.49199939]
[1723411154533,0.0005,58755.0,58754.0,2.31239939]
[1723411154735,0.0005,58755.0,58754.0,2.32639939]
[1723411154933,0.00632756,58756.0,58755.0,1.223386]
[1723411155143,0.00632756,58756.0,58755.0,1.990632]
[1723411155340,0.00632756,58756.0,58755.0,2.504028]
[1723411155546,0.00632756,58756.0,58755.0,2.482028]
[1723411155742,0.00632756,58756.0,58755.0,2.504028]
[1723411155915,0.00632756,58756.0,58755.0,2.82240324]
[1723411156115,0.00632756,58756.0,58755.0,3.11059268]
[1723411156316,0.00632756,58756.0,58755.0,2.93399217]
[1723411156654,0.00632756,58756.0,58755.0,2.59359617]
[1723411156847,0.00632756,58756.0,58755.0,2.67911724]
[1723411157108,0.00581924,58756.0,58755.0,2.73451701]
[1723411157832,0.00581924,58756.0,58755.0,2.7344978]
[1723411157943,0.00581924,58756.0,58755.0,2.7484978]
[1723411158371,0.00581924,58756.0,58755.0,2.7204978]
[1723411158579,0.00581924,58756.0,58755.0,2.62903671]
[1723411158782,0.00581924,58756.0,58755.0,2.65703671]
[1723411159374,0.00581924,58756.0,58755.0,2.59331225]
[1723411159575,0.00581924,58756.0,58755.0,2.62131225]
[1723411159779,0.00581924,58756.0,58755.0,2.60731225]
[1723411159998,0.00581924,58756.0,58755.0,2.62131225]
[1723411160721,0.00581924,58756.0,58755.0,2.06840727]
[1723411160923,0.00581924,58756.0,58755.0,1.90740727]
[1723411161236,0.00581924,58756.0,58755.0,1.56820092]
[1723411161440,0.00581924,58756.0,58755.0,1.90744647]
[1723411161646,0.00581924,58756.0,58755.0,1.89344647]
[1723411162068,0.00581924,58756.0,58755.0,1.92144647]
[1723411162286,0.00581924,58756.0,58755.0,2.00544647]
[1723411162488,0.00581924,58756.0,58755.0,1.99144647]
[1723411162691,0.00581924,58756.0,58755.0,1.85744647]
[1723411162897,0.00581924,58756.0,58755.0,1.85544647]
[1723411163103,0.00581924,58756.0,58755.0,0.54506047]
[1723411163301,0.2238657,58756.0,58755.0,0.54506047]
[1723411163540,0.7344507,58756.0,58755.0,0.31911314]
[1723411163709,0.9058507,58756.0,58755.0,0.31911314]
[1723411163916,0.3952657,58756.0,58755.0,0.31911314]
[1723411164136,0.3952657,58756.0,58755.0,0.36475424]
[1723411164340,0.3952657,58756.0,58755.0,0.31911314]
[1723411164545,0.3952657,58756.0,58755.0,0.21494061]
[1723411164546,1.2462407,58756.0,58755.0,0.21494061]
[1723411164710,1.2462407,58756.0,58755.0,0.16929822]
[1723411164934,1.5866307,58756.0,58755.0,0.15529822]
[1723411165174,1.5866307,58756.0,58755.0,0.014]
[1723411165362,1.5866307,58756.0,58755.0,0.028]
[1723411165575,0.851092,58748.0,58747.0,0.0009097]
[1723411165785,1.499129,58748.0,58747.0,0.0009097]
[1723411166014,1.499129,58748.0,58747.0,0.30610617]
[1723411166015,0.3076,58748.0,58747.0,0.30610617]
[1723411166577,0.170201,58754.0,58747.0,0.30610617]
[1723411166578,0.1385,58754.0,58747.0,0.30610617]
[1723411166761,0.08184646,58750.0,58749.0,0.510645]
[1723411166964,0.08184646,58750.0,58749.0,0.77446092]
[1723411167215,0.08184646,58750.0,58749.0,1.1278518]
[1723411167587,0.1385,58754.0,58749.0,1.2980678]
[1723411167849,0.0876657,58756.0,58755.0,0.170198]
[1723411167961,0.0876657,58756.0,58755.0,0.7874038]
[1723411168343,0.0876657,58756.0,58755.0,0.6172058]
[1723411168923,0.0876657,58756.0,58755.0,0.26381492]
[1723411169125,0.0876657,58756.0,58755.0,0.61716442]
[1723411169331,0.0876657,58756.0,58755.0,1.46815442]
[1723411169332,0.00581924,58756.0,58755.0,1.46815442]
[1723411169529,0.00581924,58756.0,58755.0,1.49115442]
[1723411169748,0.00581924,58756.0,58755.0,1.15075842]
[1723411170292,0.00581924,58756.0,58755.0,1.49115442]
[1723411170494,0.00581924,58756.0,58755.0,0.61716442]
[1723411170632,0.00681924,58756.0,58755.0,0.80036242]
[1723411170834,0.00781924,58756.0,58755.0,0.81436242]
[1723411171040,0.00781924,58756.0,58755.0,1.14075842]
[1723411171240,0.00581924,58756.0,58755.0,1.12866812]
[1723411171444,0.00781924,58756.0,58755.0,1.15666812]
[1723411172022,0.00781924,58756.0,58755.0,2.36930297]
[1723411172023,0.00581924,58756.0,58755.0,2.36930297]
[1723411172265,0.00581924,58756.0,58755.0,2.39130297]
[1723411172464,0.00781924,58756.0,58755.0,2.39730297]
[1723411172673,0.00781924,58756.0,58755.0,1.81201062]
[1723411172874,0.00781924,58756.0,58755.0,2.38320152]
[1723411173079,0.00781924,58756.0,58755.0,2.40520152]
[1723411173286,0.00781924,58756.0,58755.0,2.08030152]
[1723411173502,0.00781924,58756.0,58755.0,2.07830882]
[1723411173688,0.00681924,58756.0,58755.0,2.07431373]
[1723411173833,0.00781924,58756.0,58755.0,2.11031373]
[1723411174034,0.00881924,58756.0,58755.0,2.12431373]
[1723411174265,0.00681924,58756.0,58755.0,2.09631373]
[1723411174591,0.00581924,58756.0,58755.0,2.11031373]
[1723411174753,0.00781924,58756.0,58755.0,2.12431373]
[1723411174939,0.00681924,58756.0,58755.0,2.12139951]
[1723411175131,0.00681924,58756.0,58755.0,2.08539951]
[1723411175132,0.00581924,58756.0,58755.0,2.08539951]
[1723411175335,0.00681924,58756.0,58755.0,1.94275038]
[1723411175537,0.00681924,58756.0,58755.0,2.11939654]
[1723411175965,0.00781924,58756.0,58755.0,2.13339654]
[1723411176375,0.00781924,58756.0,58755.0,2.11334071]
[1723411176552,0.00781924,58756.0,58755.0,2.13334071]
[1723411176904,0.00781924,58756.0,58755.0,1.76897318]
[1723411177028,0.0095553,58757.0,58756.0,0.032]
[1723411177234,0.0095553,58757.0,58756.0,1.75833836]
[1723411177570,0.0095553,58757.0,58756.0,2.09872836]
[1723411178133,0.0095553,58757.0,58756.0,2.14487136]
[1723411178497,0.0115553,58757.0,58756.0,2.19487136]
[1723411178794,0.0115553,58757.0,58756.0,2.18087136]
[1723411178996,0.0105553,58757.0,58756.0,2.16687136]
[1723411179302,0.0115553,58757.0,58756.0,2.53337136]
[1723411179505,0.0115553,58757.0,58756.0,2.19298136]
[1723411179733,0.0115553,58757.0,58756.0,2.21498136]
[1723411179937,0.0115553,58757.0,58756.0,2.55537136]
[1723411180133,0.0115553,58757.0,58756.0,2.18954278]
[1723411180425,0.0125553,58757.0,58756.0,2.42698456]
[1723411180638,0.0125553,58757.0,58756.0,2.79259545]
[1723411180825,0.0105553,58757.0,58756.0,2.77859545]
[1723411181113,0.0095553,58757.0,58756.0,2.78981634]
[1723411181318,0.0105553,58757.0,58756.0,2.82903723]
[1723411181529,0.0105553,58757.0,58756.0,2.84303723]
[1723411181810,0.0125553,58757.0,58756.0,2.81805893]
[1723411181984,0.0115553,58757.0,58756.0,2.80405893]
[1723411182184,0.0125553,58757.0,58756.0,2.81805893]
[1723411182350,0.0135553,58757.0,58756.0,2.85703723]
[1723411182545,0.0125553,58757.0,58756.0,2.82903723]
[1723411182796,0.0125553,58757.0,58756.0,2.80413766]
[1723411182993,0.0135553,58757.0,58756.0,2.81813766]
[1723411183194,0.0143823,58757.0,58756.0,2.47774766]
[1723411183423,0.0123823,58757.0,58756.0,2.36254278]
[1723411183612,0.0123823,58757.0,58756.0,2.70293278]
[1723411183831,0.0123823,58757.0,58756.0,2.71693278]
[1723411183832,0.0133823,58757.0,58756.0,2.71693278]
[1723411184210,0.0123823,58757.0,58756.0,2.72493278]
[1723411184409,0.0123823,58757.0,58756.0,2.87625812]
[1723411184592,0.0113823,58757.0,58756.0,2.87625812]
[1723411185008,0.0123823,58757.0,58756.0,2.89025812]
[1723411185207,0.0123823,58757.0,58756.0,2.72493278]
[1723411185649,0.0133823,58757.0,58756.0,2.73893278]
[1723411186783,0.0133823,58757.0,58756.0,2.15382292]
[1723411186989,0.0133823,58757.0,58756.0,2.73886745]
[1723411187191,0.08184646,58762.0,58761.0,1.223263]
[1723411187412,0.05183964,58762.0,58761.0,2.09512245]
[1723411187619,0.05183964,58762.0,58761.0,2.0951323]
[1723411188032,0.0114844,58769.0,58767.0,0.850817]
[1723411188254,0.08234646,58800.0,58780.0,0.002]
[1723411188450,0.08234646,58800.0,58783.0,1.541053]
[1723411188451,0.49107874,58790.0,58783.0,1.541053]
[1723411188675,0.49107874,58790.0,58783.0,2.13732112]
[1723411188880,0.1749,58798.0,58783.0,2.32924506]
[1723411189055,0.1749,58798.0,58783.0,2.09431741]
[1723411189295,0.1749,58798.0,58783.0,2.23613233]
[1723411189517,0.1749,58798.0,58783.0,2.4346762]
[1723411189732,0.1749,58798.0,58783.0,2.4687862]
[1723411189932,0.1749,58798.0,58783.0,2.59538642]
[1723411190246,0.1749,58798.0,58783.0,2.4346762]
[1723411190519,0.1749,58798.0,58783.0,2.53592768]
[1723411190716,0.1749,58798.0,58783.0,2.54982974]
[1723411190891,0.1749,58798.0,58783.0,2.57517848]
[1723411191301,0.29031,58784.0,58783.0,2.01463775]
[1723411191500,0.16171,58784.0,58783.0,1.83572498]
[1723411191707,0.00011,58784.0,58783.0,1.84572498]
[1723411191880,0.00011,58784.0,58783.0,1.83172498]
[1723411192086,0.00011,58784.0,58783.0,1.84572498]
[1723411192303,0.00011,58784.0,58783.0,1.83172498]
[1723411192503,0.00011,58784.0,58783.0,1.81886792]
[1723411192703,0.00011,58784.0,58783.0,1.85586792]
[1723411192877,0.00011,58784.0,58783.0,1.84186792]
[1723411193579,0.00011,58784.0,58783.0,1.82786792]
[1723411193964,0.00011,58784.0,58783.0,2.15066379]
[1723411194158,0.00011,58784.0,58783.0,2.17266379]
[1723411194407,0.00011,58784.0,58783.0,2.10804638]
[1723411194724,0.00011,58784.0,58783.0,2.19797249]
[1723411194963,0.00011,58784.0,58783.0,2.21197249]
[1723411195159,0.00011,58784.0,58783.0,2.19797249]
[1723411195299,0.000937,58784.0,58783.0,2.12204638]
[1723411195501,0.000937,58784.0,58783.0,1.75081238]
[1723411195728,0.000937,58784.0,58783.0,1.76081238]
[1723411195927,0.000937,58784.0,58783.0,2.45012164]
[1723411196149,0.000937,58784.0,58783.0,2.48266056]
[1723411196489,0.08184646,58792.0,58791.0,1.190658]
[1723411196601,0.08184646,58792.0,58791.0,1.290658]
[1723411197009,0.08184646,58792.0,58791.0,1.313658]
[1723411197643,0.08184646,58792.0,58791.0,1.45489438]
[1723411197818,0.08184646,58792.0,58791.0,1.46889438]
[1723411198392,0.08184646,58792.0,58791.0,1.341658]
[1723411198626,0.08184646,58792.0,58791.0,1.327658]
[1723411198806,0.08184646,58792.0,58791.0,1.341658]
[1723411199221,0.08184646,58792.0,58791.0,1.313658]
[1723411199425,0.08184646,58792.0,58791.0,1.329658]
[1723411199599,0.08184646,58792.0,58791.0,1.343658]
[1723411199982,0.08184646,58792.0,58791.0,1.329658]
[1723411200199,0.08184646,58792.0,58791.0,1.343658]
[1723411200402,0.4734,58809.0,58791.0,1.343658]
[1723411200403,0.00827,58815.0,58809.0,0.680168]
[1723411200600,0.00827,58815.0,58809.0,1.87370892]
[1723411200810,0.00827,58815.0,58809.0,1.85170892]
[1723411201008,0.00827,58815.0,58809.0,2.19875651]
[1723411201222,0.00328,58810.0,58809.0,2.19875651]
[1723411201420,0.00328,58810.0,58809.0,2.05229292]
[1723411201621,0.00328,58810.0,58809.0,2.40521557]
[1723411201797,0.00328,58810.0,58809.0,2.41921557]
[1723411202106,0.00328,58810.0,58809.0,2.41879479]
[1723411202329,0.0020108,58810.0,58809.0,2.41879479]
[1723411202575,0.0020108,58810.0,58809.0,2.40479479]
[1723411203065,0.0020108,58810.0,58809.0,2.41521775]
[1723411203268,0.0020108,58810.0,58809.0,2.41879479]
[1723411203686,0.0020108,58810.0,58809.0,2.37479479]
[1723411203895,0.0020108,58810.0,58809.0,2.03587214]
[1723411204895,0.0020108,58810.0,58809.0,1.50668814]
[1723411205269,0.0020108,58810.0,58809.0,1.49268814]
[1723411205511,0.0020108,58810.0,58809.0,1.50468814]
[1723411205682,0.0020108,58810.0,58809.0,1.6458679]
[1723411205905,0.0020108,58810.0,58809.0,1.6318679]
[1723411206256,0.0020108,58810.0,58809.0,1.6178679]
[1723411206431,0.0020108,58810.0,58809.0,1.82963754]
[1723411206637,0.0020108,58810.0,58809.0,1.84363754]
[1723411206975,0.0020108,58810.0,58809.0,1.82963754]
[1723411207249,0.0020108,58810.0,58809.0,1.84363754]
[1723411207447,0.0020108,58810.0,58809.0,1.84477214]
[1723411207661,0.0020108,58810.0,58809.0,2.19773749]
[1723411207865,0.0020108,58810.0,58809.0,2.19573749]
[1723411208068,0.0020108,58810.0,58809.0,2.18173749]
[1723411208272,0.0020108,58810.0,58809.0,2.18664609]
[1723411208440,0.0020108,58810.0,58809.0,2.20064609]
[1723411208657,0.0020108,58810.0,58809.0,2.18664609]
[1723411208858,0.0020108,58810.0,58809.0,2.20064609]
[1723411209440,0.0020108,58810.0,58809.0,2.18464609]
[1723411209771,0.1648,58819.0,58809.0,2.18464609]
[1723411209772,0.00828,58821.0,58820.0,0.20201]
[1723411209967,0.20894646,58836.0,58827.0,0.171989]
[1723411210199,0.20894646,58836.0,58827.0,1.80670627]
[1723411210378,0.12952395,58836.0,58835.0,0.849832]
[1723411210581,0.12952395,58836.0,58835.0,1.25483306]
[1723411210582,0.1271,58836.0,58835.0,1.25483306]
[1723411210801,0.1271,58836.0,58835.0,1.65415543]
[1723411210980,0.20894646,58836.0,58835.0,1.31418019]
[1723411211176,0.08184646,58847.0,58835.0,1.31418019]
[1723411211177,0.08184646,58841.0,58840.0,0.509856]
[1723411211470,0.08184646,58841.0,58840.0,0.81482023]
[1723411211880,0.2881,58842.0,58841.0,0.509848]
[1723411212062,0.2881,58842.0,58840.0,0.46434819]
[1723411212063,0.24034646,58841.0,58840.0,0.32319888]
[1723411212209,0.24034646,58841.0,58840.0,0.1411392]